fUST/lending_fUST_20250718
["ID","MTS","AMOUNT","RATE_DAILY","PERIOD"]
[372960254,1752823839225,-500.0,0.00016883,2]
[372960256,1752823839234,-885.0,0.00016883,2]
[372960258,1752823839243,-151.0,0.00016883,2]
[372960260,1752823839253,-500.0,0.00016883,2]
[372960263,1752823839262,-151.0,0.00016883,2]
[372960264,1752823839272,-151.0,0.00016883,2]
[372960266,1752823839281,-151.0,0.00016883,2]
[372960268,1752823839291,-151.0,0.00016883,2]
[372960271,1752823839300,-511.91046531,0.00016883,2]
[372960273,1752823839310,-151.0,0.00016883,2]
[372960275,1752823839319,-151.0,0.00016883,2]
[372960277,1752823839328,-151.0,0.00016883,2]
[372960279,1752823839342,-460.0,0.00016883,2]
[372960281,1752823839352,-464.43031929,0.00016883,2]
[372960283,1752823839362,-460.0,0.00016883,2]
[372960285,1752823839371,-460.0,0.00016883,2]
[372960287,1752823839380,-460.0,0.00016883,2]
[372960289,1752823839389,-461.03816796,0.00016883,2]
[372960291,1752823839398,-460.0,0.00016883,2]
[372960293,1752823839408,-460.0,0.00016883,2]
[372960295,1752823839417,-501.03902153,0.00016883,2]
[372960296,1752823839426,-460.0,0.00016883,2]
[372960298,1752823839436,-460.0,0.00016883,2]
[372960300,1752823839448,-460.0,0.00016883,2]
[372960302,1752823839457,-460.0,0.00016883,2]
[372960305,1752823839467,-460.0,0.00016883,2]
[372960306,1752823839476,-460.0,0.00016883,2]
[372960308,1752823839486,-460.0,0.00016883,2]
[372960310,1752823839495,-460.0,0.00016883,2]
[372960311,1752823839505,-460.0,0.00016883,2]
[372960313,1752823839515,-460.0,0.00016883,2]
[372960316,1752823839524,-460.0,0.00016883,2]
[372960318,1752823839537,-460.0,0.00016883,2]
[372960320,1752823839547,-460.0,0.00016883,2]
[372960322,1752823839556,-460.0,0.00016883,2]
[372960324,1752823839565,-460.0,0.00016883,2]
[372960326,1752823839575,-460.0,0.00016883,2]
[372960328,1752823839588,-460.0,0.00016883,2]
[372960330,1752823839598,-460.0,0.00016883,2]
[372960331,1752823839608,-460.0,0.00016883,2]
[372960333,1752823839617,-460.0,0.00016883,2]
[372960336,1752823839627,-460.0,0.00016883,2]
[372960338,1752823839637,-460.97763512,0.00016883,2]
[372960340,1752823839646,-460.0,0.00016883,2]
[372960341,1752823839656,-460.0,0.00016883,2]
[372960344,1752823839665,-460.0,0.00016883,2]
[372960345,1752823839675,-460.0,0.00016883,2]
[372960347,1752823839684,-2855.59,0.00016883,2]
[372960349,1752823839693,-460.0,0.00016883,2]
[372960351,1752823839703,-460.0,0.00016883,2]
[372960353,1752823839712,-609.03,0.00016883,2]
[372960355,1752823839722,-460.0,0.00016883,2]
[372960357,1752823839731,-153.40204311,0.00016883,2]
[372960359,1752823839741,-460.0,0.00016883,2]
[372960361,1752823839750,-460.0,0.00016883,2]
[372960363,1752823839759,-460.0,0.00016883,2]
[372960365,1752823839768,-460.0,0.00016883,2]
[372960367,1752823839778,-460.0,0.00016883,2]
[372960369,1752823839787,-758.61,0.00016883,2]
[372960371,1752823839797,-460.0,0.00016883,2]
[372960374,1752823839807,-500.0,0.00016883,2]
[372960376,1752823839817,-1070.21524868,0.000169,2]
[372960378,1752823839826,-460.0,0.00016981,2]
[372960379,1752823839837,-460.0,0.00016981,2]
[372960381,1752823839847,-460.0,0.00016981,2]
[372960383,1752823839857,-460.0,0.00016981,2]
[372960386,1752823839867,-460.0,0.00016981,2]
[372960388,1752823839877,-460.0,0.00016981,2]
[372960390,1752823839886,-460.0,0.00016981,2]
[372960392,1752823839896,-460.0,0.00016981,2]
[372960394,1752823839905,-460.0,0.00016981,2]
[372960396,1752823839916,-460.0,0.00016981,2]
[372960398,1752823839925,-386.17616742,0.00016981,2]
[372960413,1752823840059,-73.82383258,0.00016981,2]
[372960415,1752823840069,-250.42496023,0.00016981,2]
[372960418,1752823840088,-209.57503977,0.00016981,2]
[372960420,1752823840098,-460.0,0.00016981,2]
[372960423,1752823840109,-460.0,0.00016981,2]
[372960425,1752823840119,-460.0,0.00016981,2]
[372960427,1752823840128,-460.0,0.00016981,2]
[372960428,1752823840138,-460.0,0.00016981,2]
[372960430,1752823840147,-460.0,0.00016981,2]
[372960432,1752823840157,-460.0,0.00016981,2]
[372960435,1752823840167,-34.72335856,0.00016981,2]
[372960439,1752823840179,-425.27664144,0.00016981,2]
[372960442,1752823840188,-460.0,0.00016981,2]
[372960444,1752823840198,-460.0,0.00016981,2]
[372960446,1752823840207,-460.0,0.00016981,2]
[372960448,1752823840218,-511.89,0.00016981,2]
[372960450,1752823840227,-369.73004408,0.00016981,2]
[372960513,1752823840774,-172.1724662,0.00016607,2]
[372960516,1752823840784,-460.0,0.00016608,2]
[372960519,1752823840793,-347.40814818,0.00016882,2]
[372960522,1752823840803,-502.22,0.00016882,2]
[372960526,1752823840813,-37.34995592,0.00016981,2]
[372960528,1752823840822,-460.0,0.00016981,2]
[372960531,1752823840832,-460.0,0.00016981,2]
[372960533,1752823840843,-460.0,0.00016981,2]
[372960535,1752823840852,-460.0,0.00016981,2]
[372960537,1752823840862,-1478.52,0.00016981,2]
[372960539,1752823840871,-460.0,0.00016981,2]
[372960541,1752823840880,-460.0,0.00016981,2]
[372960543,1752823840890,-460.0,0.00016981,2]
[372960545,1752823840899,-460.0,0.00016982,2]
[372960547,1752823840908,-460.0,0.00016982,2]
[372960549,1752823840918,-460.0,0.00016982,2]
[372960551,1752823840927,-460.0,0.00016982,2]
[372960553,1752823840937,-460.0,0.00016982,2]
[372960555,1752823840948,-460.0,0.00016982,2]
[372960557,1752823840957,-460.0,0.00016982,2]
[372960559,1752823840966,-460.0,0.00016982,2]
[372960561,1752823840975,-460.0,0.00016982,2]
[372960563,1752823840984,-460.0,0.00016982,2]
[372960565,1752823840993,-460.0,0.00016982,2]
[372960567,1752823841003,-460.0,0.00016982,2]
[372960569,1752823841011,-460.0,0.00016982,2]
[372960571,1752823841021,-555.06,0.00016982,2]
[372960572,1752823841031,-460.0,0.00016982,2]
[372960573,1752823841040,-460.0,0.00016982,2]
[372960574,1752823841049,-460.0,0.00016982,2]
[372960575,1752823841059,-460.0,0.00016982,2]
[372960577,1752823841068,-460.0,0.00016982,2]
[372960579,1752823841077,-460.0,0.00016982,2]
[372960581,1752823841088,-836.74,0.00016982,2]
[372960583,1752823841097,-460.0,0.00016982,2]
[372960585,1752823841107,-265.44133932,0.00016982,2]
[372960587,1752823841118,-2168.70866068,0.00016982,2]
[372960600,1752823841236,-675.88,0.00016982,2]
[372960602,1752823841245,-460.0,0.00016982,2]
[372960604,1752823841255,-460.0,0.00016982,2]
[372960606,1752823841264,-460.0,0.00016982,2]
[372960609,1752823841273,-460.0,0.00016982,2]
[372960611,1752823841283,-460.0,0.00016982,2]
[372960612,1752823841292,-922.23549704,0.00017058,2]
[372960614,1752823841301,-430.24600537,0.00017155,2]
[372960617,1752823841312,-460.0,0.00017155,2]
[372960619,1752823841322,-460.0,0.00017155,2]
[372960621,1752823841331,-460.0,0.00017155,2]
[372960623,1752823841342,-543.40550302,0.00017155,2]
[372960624,1752823841351,-460.0,0.00017155,2]
[372960626,1752823841362,-460.0,0.00017155,2]
[372960629,1752823841372,-460.0,0.00017155,2]
[372960631,1752823841382,-460.0,0.00017155,2]
[372960633,1752823841391,-460.0,0.00017155,2]
[372960635,1752823841401,-460.0,0.00017155,2]
[372960637,1752823841410,-243.61936132,0.00017155,2]
[372960639,1752823841419,-460.0,0.00017155,2]
[372960640,1752823841429,-460.0,0.00017155,2]
[372960643,1752823841439,-460.0,0.00017155,2]
[372960645,1752823841449,-460.0,0.00017155,2]
[372960646,1752823841460,-460.0,0.00017155,2]
[372960648,1752823841471,-460.0,0.00017155,2]
[372960650,1752823841480,-460.0,0.00017155,2]
[372960652,1752823841489,-1420.83,0.00017155,2]
[372960654,1752823841499,-460.0,0.00017155,2]
[372960656,1752823841508,-460.0,0.00017155,2]
[372960659,1752823841517,-3946.43,0.00017155,2]
[372960660,1752823841527,-198.93250359,0.00017156,2]
[372960663,1752823841538,-460.0,0.00017156,2]
[372960664,1752823841548,-460.0,0.00017156,2]
[372960667,1752823841557,-221.28,0.00017156,2]
[372960669,1752823841567,-460.0,0.00017156,2]
[372960671,1752823841577,-460.0,0.00017156,2]
[372960673,1752823841588,-460.0,0.00017156,2]
[372960675,1752823841598,-460.0,0.00017156,2]
[372960677,1752823841608,-460.0,0.00017156,2]
[372960679,1752823841617,-460.0,0.00017156,2]
[372960681,1752823841627,-460.0,0.00017156,2]
[372960683,1752823841637,-460.0,0.00017156,2]
[372960685,1752823841646,-460.0,0.00017156,2]
[372960687,1752823841656,-460.0,0.00017156,2]
[372960689,1752823841666,-460.0,0.00017156,2]
[372960691,1752823841675,-460.0,0.00017156,2]
[372960693,1752823841685,-460.0,0.00017156,2]
[372960695,1752823841694,-460.0,0.00017156,2]
[372960697,1752823841704,-460.0,0.00017156,2]
[372960699,1752823841714,-460.0,0.00017156,2]
[372960701,1752823841724,-1726.21,0.00017156,2]
[372960703,1752823841736,-460.0,0.00017156,2]
[372960705,1752823841746,-460.0,0.00017156,2]
[372960707,1752823841757,-460.0,0.00017156,2]
[372960709,1752823841767,-986.53,0.00017156,2]
[372960711,1752823841777,-460.0,0.00017156,2]
[372960713,1752823841787,-460.0,0.00017156,2]
[372960715,1752823841797,-460.0,0.00017156,2]
[372960717,1752823841808,-460.0,0.00017156,2]
[372960719,1752823841817,-289.62,0.00017156,2]
[372960721,1752823841827,-460.0,0.00017156,2]
[372960723,1752823841838,-460.0,0.00017156,2]
[372960725,1752823841848,-460.0,0.00017156,2]
[372960727,1752823841857,-460.0,0.00017156,2]
[372960729,1752823841867,-465.31300322,0.00017156,2]
[372960731,1752823841876,-460.0,0.00017156,2]
[372960733,1752823841885,-460.0,0.00017156,2]
[372960735,1752823841896,-1371.94,0.00017156,2]
[372960737,1752823841905,-460.0,0.00017156,2]
[372960739,1752823841914,-460.0,0.00017156,2]
[372960741,1752823841924,-428.81746187,0.00017156,2]
[372960743,1752823841934,-460.0,0.00017156,2]
[372960745,1752823841943,-460.0,0.00017156,2]
[372960747,1752823841953,-460.0,0.00017156,2]
[372960749,1752823841962,-460.0,0.00017156,2]
[372960751,1752823841972,-460.0,0.00017156,2]
[372960753,1752823841982,-911.92,0.00017156,2]
[372960755,1752823841991,-460.0,0.00017156,2]
[372960757,1752823842000,-460.0,0.00017156,2]
[372960759,1752823842011,-460.0,0.00017156,2]
[372960761,1752823842021,-460.0,0.00017156,2]
[372960763,1752823842030,-460.0,0.00017156,2]
[372960765,1752823842040,-460.0,0.00017156,2]
[372960767,1752823842050,-629.12,0.00017156,2]
[372960769,1752823842062,-460.0,0.00017156,2]
[372960771,1752823842086,-460.0,0.00017156,2]
[372960773,1752823842100,-638.39,0.00017156,2]
[372960775,1752823842110,-460.0,0.00017156,2]
[372960776,1752823842122,-460.0,0.00017156,2]
[372960777,1752823842144,-460.0,0.00017156,2]
[372960778,1752823842156,-460.0,0.00017156,2]
[372960779,1752823842165,-198.0,0.00017157,2]
[372960780,1752823842174,-276.60917093,0.00017157,2]
[372960781,1752823842183,-151.0,0.00017157,2]
[372960782,1752823842192,-464.0,0.00017157,2]
[372960783,1752823842202,-500.0,0.00017157,2]
[372960784,1752823842211,-151.0,0.00017157,2]
[372960785,1752823842220,-349.0,0.00017157,2]
[372960786,1752823842229,-885.0,0.00017157,2]
[372960787,1752823842239,-502.39088052,0.00017157,2]
[372960788,1752823842248,-151.0,0.00017157,2]
[372960789,1752823842258,-198.69810544,0.00017157,2]
[372960790,1752823842267,-198.0,0.00017157,2]
[372960791,1752823842275,-151.0,0.00017157,2]
[372960792,1752823842285,-151.0,0.00017157,2]
[372960793,1752823842294,-151.0,0.00017157,2]
[372960794,1752823842303,-198.0,0.00017157,2]
[372960795,1752823842312,-397.26525267,0.00017157,2]
[372960796,1752823842322,-460.0,0.00017157,2]
[372960797,1752823842331,-460.0,0.00017157,2]
[372960799,1752823842344,-460.0,0.00017157,2]
[372960800,1752823842354,-460.0,0.00017157,2]
[372960801,1752823842363,-460.0,0.00017157,2]
[372960803,1752823842372,-329.44785826,0.00017157,2]
[372960805,1752823842382,-460.0,0.00017157,2]
[372960807,1752823842391,-460.0,0.00017157,2]
[372960809,1752823842401,-460.0,0.00017157,2]
[372960811,1752823842411,-460.0,0.00017157,2]
[372960813,1752823842420,-2855.59,0.00017157,2]
[372960815,1752823842429,-460.0,0.00017157,2]
[372960817,1752823842439,-609.03,0.00017157,2]
[372960819,1752823842448,-460.0,0.00017157,2]
[372960821,1752823842458,-336.25482979,0.00017157,2]
[372960823,1752823842468,-460.0,0.00017157,2]
[372960825,1752823842477,-758.61,0.00017157,2]
[372960827,1752823842487,-460.0,0.00017157,2]
[372960829,1752823842496,-1070.21524862,0.0001721,2]
[372960831,1752823842506,-460.0,0.00017255,2]
[372960833,1752823842517,-460.0,0.00017255,2]
[372960835,1752823842527,-460.0,0.00017255,2]
[372960837,1752823842543,-460.0,0.00017255,2]
[372960840,1752823842554,-460.0,0.00017255,2]
[372960841,1752823842563,-460.0,0.00017255,2]
[372960844,1752823842572,-460.0,0.00017255,2]
[372960845,1752823842583,-460.0,0.00017255,2]
[372960848,1752823842595,-460.0,0.00017255,2]
[372960850,1752823842605,-460.0,0.00017255,2]
[372960851,1752823842616,-460.0,0.00017255,2]
[372960854,1752823842626,-460.0,0.00017255,2]
[372960855,1752823842635,-460.0,0.00017255,2]
[372960857,1752823842644,-460.0,0.00017255,2]
[372960859,1752823842655,-460.0,0.00017255,2]
[372960861,1752823842664,-460.0,0.00017255,2]
[372960863,1752823842674,-460.0,0.00017255,2]
[372960866,1752823842683,-511.89,0.00017255,2]
[372960868,1752823842693,-460.0,0.00017255,2]
[372960869,1752823842705,-467.67123983,0.00017255,2]
[372960872,1752823842714,-460.0,0.00017255,2]
[372960874,1752823842724,-1478.52,0.00017255,2]
[372960876,1752823842733,-460.0,0.00017255,2]
[372960877,1752823842746,-460.0,0.00017255,2]
[372960879,1752823842766,-599.00652439,0.00017256,2]
[372960881,1752823842778,-460.0,0.00017256,2]
[372960883,1752823842789,-460.0,0.00017256,2]
[372960885,1752823842799,-460.0,0.00017256,2]
[372960887,1752823842811,-500.46,0.00017256,2]
[372960889,1752823842821,-460.0,0.00017256,2]
[372960891,1752823842830,-460.0,0.00017256,2]
[372960893,1752823842843,-460.0,0.00017256,2]
[372960895,1752823842852,-156.83496223,0.00017256,2]
[372960897,1752823842862,-836.74,0.00017256,2]
[372960899,1752823842872,-460.0,0.00017256,2]
[372960901,1752823842882,-2434.15,0.00017256,2]
[372960903,1752823842892,-675.88,0.00017256,2]
[372960905,1752823842901,-367.50115358,0.00017256,2]
[372960907,1752823842916,-92.49884642,0.00017256,2]
[372960909,1752823842926,-460.0,0.00017256,2]
[372960911,1752823842935,-547.0,0.00017256,2]
[372960913,1752823842945,-460.0,0.00017256,2]
[372960915,1752823842955,-1000.0,0.00017321,2]
[372960917,1752823842965,-1000.0,0.00017321,2]
[372960919,1752823842974,-1000.0,0.00017421,2]
[372960921,1752823842983,-460.0,0.00017429,2]
[372960923,1752823842994,-460.0,0.00017429,2]
[372960925,1752823843003,-460.0,0.00017429,2]
[372960927,1752823843012,-460.0,0.00017429,2]
[372960929,1752823843022,-460.0,0.00017429,2]
[372960931,1752823843031,-460.0,0.00017429,2]
[372960933,1752823843040,-460.0,0.00017429,2]
[372960936,1752823843050,-460.0,0.00017429,2]
[372960938,1752823843059,-1420.83,0.00017429,2]
[372960940,1752823843069,-460.0,0.00017429,2]
[372960942,1752823843079,-3729.24755645,0.00017429,2]
[372960944,1752823843093,-217.18244355,0.00017429,2]
[372960946,1752823843102,-254.36294354,0.0001743,2]
[372960948,1752823843114,-205.63705646,0.0001743,2]
[372960950,1752823843124,-460.0,0.0001743,2]
[372960952,1752823843134,-460.0,0.0001743,2]
[372960954,1752823843143,-460.0,0.0001743,2]
[372960956,1752823843153,-460.0,0.0001743,2]
[372960958,1752823843162,-460.0,0.0001743,2]
[372960960,1752823843171,-510.95010467,0.0001743,2]
[372960963,1752823843181,-460.0,0.0001743,2]
[372960966,1752823843190,-460.0,0.0001743,2]
[372960969,1752823843200,-460.0,0.0001743,2]
[372960971,1752823843209,-460.0,0.0001743,2]
[372960973,1752823843219,-460.0,0.0001743,2]
[372960975,1752823843228,-460.0,0.0001743,2]
[372960977,1752823843239,-460.0,0.0001743,2]
[372960979,1752823843248,-1726.21,0.0001743,2]
[372960981,1752823843257,-460.0,0.0001743,2]
[372960983,1752823843267,-460.0,0.0001743,2]
[372960985,1752823843277,-460.0,0.0001743,2]
[372960987,1752823843286,-986.53,0.0001743,2]
[372960989,1752823843296,-460.0,0.0001743,2]
[372960991,1752823843306,-460.0,0.0001743,2]
[372960993,1752823843315,-460.0,0.0001743,2]
[372960995,1752823843325,-460.0,0.0001743,2]
[372960997,1752823843334,-460.0,0.0001743,2]
[372960999,1752823843346,-460.0,0.0001743,2]
[372961001,1752823843355,-460.0,0.0001743,2]
[372961003,1752823843365,-460.0,0.0001743,2]
[372961005,1752823843374,-1371.94,0.0001743,2]
[372961007,1752823843384,-460.0,0.0001743,2]
[372961009,1752823843394,-460.0,0.0001743,2]
[372961011,1752823843403,-460.0,0.0001743,2]
[372961013,1752823843412,-460.0,0.0001743,2]
[372961015,1752823843422,-460.0,0.0001743,2]
[372961017,1752823843432,-911.92,0.0001743,2]
[372961019,1752823843442,-460.0,0.0001743,2]
[372961021,1752823843451,-370.7,0.0001743,2]
[372961023,1752823843460,-460.0,0.0001743,2]
[372961025,1752823843469,-460.0,0.0001743,2]
[372961027,1752823843479,-460.0,0.0001743,2]
[372961029,1752823843488,-460.0,0.0001743,2]
[372961031,1752823843498,-629.12,0.0001743,2]
[372961033,1752823843507,-460.0,0.0001743,2]
[372961035,1752823843518,-460.0,0.0001743,2]
[372961037,1752823843527,-638.39,0.0001743,2]
[372961039,1752823843540,-460.0,0.0001743,2]
[372961041,1752823843549,-460.0,0.0001743,2]
[372961044,1752823843558,-460.0,0.0001743,2]
[372961046,1752823843568,-528.91608877,0.0001743,2]
[372961047,1752823843578,-151.0,0.00017431,2]
[372961049,1752823843590,-464.0,0.00017431,2]
[372961052,1752823843599,-500.0,0.00017431,2]
[372961053,1752823843610,-151.0,0.00017431,2]
[372961055,1752823843620,-885.0,0.00017431,2]
[372961057,1752823843630,-198.94159908,0.00017431,2]
[372961060,1752823843640,-198.81106672,0.00017431,2]
[372961062,1752823843649,-198.54723156,0.00017431,2]
[372961064,1752823843660,-601.45,0.00017431,2]
[372961066,1752823843669,-460.0,0.00017431,2]
[372961068,1752823843679,-460.0,0.00017431,2]
[372961081,1752823843790,-460.0,0.00017431,2]
[372961083,1752823843800,-460.0,0.00017431,2]
[372961085,1752823843811,-460.0,0.00017431,2]
[372961087,1752823843820,-460.0,0.00017431,2]
[372961089,1752823843830,-460.0,0.00017431,2]
[372961091,1752823843841,-2855.59,0.00017431,2]
[372961092,1752823843851,-460.0,0.00017431,2]
[372961095,1752823843861,-609.03,0.00017431,2]
[372961097,1752823843870,-460.0,0.00017431,2]
[372961099,1752823843880,-460.0,0.00017431,2]
[372961101,1752823843890,-758.61,0.00017431,2]
[372961103,1752823843900,-460.0,0.00017431,2]
[372961104,1752823843910,-1070.21524862,0.00017521,2]
[372961106,1752823843920,-460.0,0.00017529,2]
[372961108,1752823843930,-460.0,0.00017529,2]
[372961111,1752823843940,-460.0,0.00017529,2]
[372961113,1752823843950,-460.0,0.00017529,2]
[372961115,1752823843959,-460.0,0.00017529,2]
[372961117,1752823843968,-460.0,0.00017529,2]
[372961119,1752823843977,-460.0,0.00017529,2]
[372961121,1752823843987,-460.0,0.00017529,2]
[372961123,1752823843996,-460.0,0.00017529,2]
[372961125,1752823844006,-600.35224083,0.00017529,2]
[372961127,1752823844015,-460.0,0.00017529,2]
[372961129,1752823844025,-460.0,0.00017529,2]
[372961131,1752823844034,-460.0,0.00017529,2]
[372961133,1752823844044,-460.0,0.00017529,2]
[372961135,1752823844054,-460.0,0.00017529,2]
[372961137,1752823844063,-460.0,0.00017529,2]
[372961139,1752823844073,-511.89,0.00017529,2]
[372961140,1752823844082,-460.0,0.00017529,2]
[372961142,1752823844092,-460.0,0.00017529,2]
[372961144,1752823844102,-1478.52,0.00017529,2]
[372961146,1752823844112,-460.0,0.00017529,2]
[372961149,1752823844121,-460.0,0.00017529,2]
[372961150,1752823844131,-460.0,0.0001753,2]
[372961152,1752823844140,-460.0,0.0001753,2]
[372961154,1752823844150,-460.0,0.0001753,2]
[372961157,1752823844159,-836.74,0.0001753,2]
[372961158,1752823844169,-156.53537001,0.0001753,2]
[372961160,1752823844178,-2434.15,0.0001753,2]
[372961162,1752823844187,-675.88,0.0001753,2]
[372961165,1752823844197,-575.73543737,0.0001753,2]
[372961166,1752823844206,-468.2,0.00017626,2]
[372961169,1752823844215,-460.0,0.00017703,2]
[372961171,1752823844225,-460.0,0.00017703,2]
[372961172,1752823844236,-460.0,0.00017703,2]
[372961173,1752823844245,-460.0,0.00017703,2]
[372961174,1752823844255,-1420.83,0.00017703,2]
[372961175,1752823844264,-460.0,0.00017703,2]
[372961176,1752823844274,-3946.43,0.00017703,2]
[372961177,1752823844283,-460.0,0.00017704,2]
[372961178,1752823844293,-460.0,0.00017704,2]
[372961179,1752823844302,-460.0,0.00017704,2]
[372961180,1752823844312,-460.0,0.00017704,2]
[372961181,1752823844322,-460.0,0.00017704,2]
[372961182,1752823844331,-460.0,0.00017704,2]
[372961183,1752823844341,-460.0,0.00017704,2]
[372961184,1752823844350,-460.0,0.00017704,2]
[372961185,1752823844359,-460.0,0.00017704,2]
[372961186,1752823844369,-460.0,0.00017704,2]
[372961187,1752823844378,-1726.21,0.00017704,2]
[372961188,1752823844388,-460.0,0.00017704,2]
[372961189,1752823844397,-460.0,0.00017704,2]
[372961190,1752823844406,-986.53,0.00017704,2]
[372961191,1752823844415,-460.0,0.00017704,2]
[372961192,1752823844425,-460.0,0.00017704,2]
[372961193,1752823844435,-460.0,0.00017704,2]
[372961194,1752823844444,-460.0,0.00017704,2]
[372961195,1752823844453,-460.0,0.00017704,2]
[372961196,1752823844463,-460.0,0.00017704,2]
[372961197,1752823844472,-460.0,0.00017704,2]
[372961198,1752823844481,-1371.94,0.00017704,2]
[372961199,1752823844492,-460.0,0.00017704,2]
[372961200,1752823844501,-460.0,0.00017704,2]
[372961201,1752823844511,-460.0,0.00017704,2]
[372961202,1752823844520,-460.0,0.00017704,2]
[372961203,1752823844529,-911.92,0.00017704,2]
[372961204,1752823844543,-460.0,0.00017704,2]
[372961205,1752823844552,-460.0,0.00017704,2]
[372961206,1752823844562,-460.0,0.00017704,2]
[372961207,1752823844571,-460.0,0.00017704,2]
[372961208,1752823844581,-629.12,0.00017704,2]
[372961209,1752823844592,-460.0,0.00017704,2]
[372961210,1752823844602,-460.0,0.00017704,2]
[372961211,1752823844613,-638.39,0.00017704,2]
[372961212,1752823844624,-460.0,0.00017704,2]
[372961213,1752823844634,-460.0,0.00017704,2]
[372961214,1752823844644,-294.20688555,0.00017705,2]
[372961215,1752823844654,-464.0,0.00017705,2]
[372961216,1752823844664,-152.81223864,0.00017705,2]
[372961217,1752823844674,-245.0,0.00017705,2]
[372961218,1752823844683,-885.0,0.00017705,2]
[372961219,1752823844693,-436.03568953,0.00017705,2]
[372961220,1752823844703,-460.0,0.00017705,2]
[372961221,1752823844713,-460.0,0.00017705,2]
[372961222,1752823844722,-460.0,0.00017705,2]
[372961223,1752823844732,-2855.59,0.00017705,2]
[372961224,1752823844742,-460.0,0.00017705,2]
[372961225,1752823844752,-609.03,0.00017705,2]
[372961226,1752823844762,-460.0,0.00017705,2]
[372961227,1752823844772,-460.0,0.00017705,2]
[372961228,1752823844782,-758.61,0.00017705,2]
[372961229,1752823844793,-386.60072505,0.00017705,2]
[372961230,1752823844803,-460.0,0.00017803,2]
[372961231,1752823844813,-531.73,0.00017803,2]
[372961232,1752823844822,-460.0,0.00017803,2]
[372961233,1752823844832,-460.0,0.00017803,2]
[372961234,1752823844842,-460.0,0.00017803,2]
[372961235,1752823844851,-460.0,0.00017803,2]
[372961236,1752823844860,-460.0,0.00017803,2]
[372961237,1752823844869,-460.0,0.00017803,2]
[372961238,1752823844879,-460.0,0.00017803,2]
[372961239,1752823844889,-460.0,0.00017803,2]
[372961240,1752823844898,-236.67,0.00017803,2]
[372961241,1752823844908,-460.0,0.00017803,2]
[372961242,1752823844918,-460.0,0.00017803,2]
[372961243,1752823844927,-511.89,0.00017803,2]
[372961244,1752823844937,-460.0,0.00017803,2]
[372961245,1752823844947,-460.0,0.00017803,2]
[372961246,1752823844956,-1478.52,0.00017803,2]
[372961247,1752823844968,-460.0,0.00017803,2]
[372961248,1752823844977,-471.6876449,0.00017803,2]
[372961249,1752823844987,-460.0,0.00017804,2]
[372961250,1752823844996,-836.74,0.00017804,2]
[372961251,1752823845007,-2434.15,0.00017804,2]
[372961252,1752823845016,-675.88,0.00017804,2]
[372961253,1752823845026,-1070.21524862,0.00017831,2]
[372961254,1752823845035,-1500.0,0.00017868,2]